Cogmind - Beta 14 @@@ ROGUE MODE // 2024.08.25 @ 22:16:11 Player: Mallow Result: Destroyed by as-49350 with Assembled Heavy Rifle Performance ------------- Evolutions (0) 0 Regions Visited (2) 400 Robots Destroyed (11) 55 Value Destroyed (179) 179 Prototype IDs (0) 0 Alien Tech Used (0) 0 Bonus (0) 0 TOTAL SCORE: 634 Bonus ------- None Cogmind --------- Core Integrity 0/250 Matter 251/300 Energy 100/100 System Corruption 13% Temperature Cool (0) Movement Treading (160) Location -10/Mines Parts ------- > --- POWER (1) -------- (None) > --- PROPULSION (2) --- Light Treads > --- UTILITY (2) ------ Small Storage Unit Targeting Computer > --- WEAPON (2) ------- Light Assault Rifle Light Assault Rifle > --- INVENTORY (8) ---- Improved Ion Engine Structural Scanner Light Assault Rifle Peak State ------------ > --- POWER ------------ Light Ion Engine > --- PROPULSION ------- Light Treads Light Treads > --- UTILITY ---------- Small Storage Unit Structural Scanner > --- WEAPON ----------- Assault Rifle Assault Rifle > --- INVENTORY -------- Light Ion Engine Structural Scanner [Rating: 7] Favorites ----------- Power Light Ion Engine Engine Light Ion Engine Propulsion Light Treads Treads Light Treads Utility Small Storage Unit Device Structural Scanner Storage Small Storage Unit Processor Targeting Computer Weapon Assault Rifle Ballistic Gun Assault Rifle Build | -11 -10 -10 ------- Run | Yrd Mat Min Slots Evolved . | . . . Power . | . . . Propulsion . | . . . Utility . | . . . Weapon . | . . . Parts Attached 15 | 6 2 7 Power 2 | 1 . 1 Engine 2 | 1 . 1 Core . | . . . Reactor . | . . . Propulsion 4 | 2 . 2 Treads 4 | 2 . 2 Leg . | . . . Wheel . | . . . Hover . | . . . Flight . | . . . Utility 4 | 1 1 2 Device 1 | . 1 . Storage 1 | 1 . . Processor 2 | . . 2 Hackware . | . . . Protection . | . . . Artifact . | . . . Weapon 5 | 2 1 2 Energy Gun . | . . . Energy Cannon . | . . . Ballistic Gun 5 | 2 1 2 Ballistic Cannon . | . . . Launcher . | . . . Special Weapon . | . . . Impact Weapon . | . . . Slashing Weapon . | . . . Piercing Weapon . | . . . Special Melee Weapon . | . . . Unidentified Prototypes . | . . . Parts Lost 7 | . 1 6 Power 2 | . . 2 Propulsion 1 | . . 1 Utility 2 | . . 2 Weapon 2 | . 1 1 Highest Loss Streak 6 | . 1 6 To Critical Strikes . | . . . Average Slot Usage (%) 97 | . 98 95 Engine 13 | . 14 13 Treads 27 | . 28 26 Device 12 | . 12 11 Storage 14 | . 14 14 Ballistic Gun 27 | . 28 27 Peak Build Rating 7 | 6 7 7 Average Rating 6 | 4 6 6 On Entrance 4 | . 6 7 Naked Turns . | . . . Heaviest Build 13 | 12 13 12 Greatest Support 40 | 40 40 40 Greatest Overweight (x) . | . . . Average Overweight (x) . | . . . Largest Inventory Capacity 8 | 8 8 8 Average Capacity 7 | 6 8 8 Most Carried 7 | 4 5 7 Average Carried 3 | 1 2 6 Final Capacity 8 | 8 8 8 Final Carried 4 | 1 4 3 Class Distribution -------------------- 100% | Mutant Dominant Class ---------------- Mutant | -10/Materials Mutant | -10/Mines Resources | -11 -10 -10 ----------- Run | Yrd Mat Min Matter Collected 460 | 198 157 105 Remotely . | . . . Salvage Created 280 | . 227 53 Parts 15 | . 15 . Haulers Intercepted . | . . . Recyclers Shooed . | . . . Parts Field Recycled . | . . . Retrieved Matter . | . . . Parts Self-Destructed . | . . . Prevented . | . . . Kills | -11 -10 -10 ------- Run | Yrd Mat Min Combat Hostiles Destroyed 14 | . 9 5 Melee 1 | . . 1 Guns 13 | . 9 4 Classes Destroyed 5 | . 4 1 Worker 1 | . 1 . Operator 1 | . 1 . Swarmer 6 | . 6 . Grunt 3 | . 3 . Assembled 5 | . . 5 Best Kill Streak 5 | . 4 5 Combat Bots Only 5 | . 3 5 Max Kills in Single Turn 1 | . 1 1 Gunslinging . | . . . Exploded . | . . . Melee 1 | . . 1 Uniques/NPCs Destroyed . | . . . Combat | -11 -10 -10 -------- Run | Yrd Mat Min Hostile Shots Fired 107 | . 51 56 Missed 23 | . 13 10 Damage Taken 1203 | . 327 876 Core 258 | . 16 242 Absorbed by Shields . | . . . Core Remaining (%) 100 | 100 . . Volleys Fired 45 | . 26 19 Largest 2 | . 2 2 Hottest 40 | . 40 40 Shots Fired 89 | . 51 38 Gun 89 | . 51 38 Cannon . | . . . Launcher . | . . . Special . | . . . Kinetic 89 | . 51 38 Thermal . | . . . Explosive . | . . . Electromagnetic . | . . . Robot Hit Streak 6 | . 6 5 Robot Miss Streak 2 | . 2 2 Penetration Max . | . . . Secondary Targets 4 | . 2 2 Max Gunslinging Chain 1 | . 1 1 Shots Hit Robots 53 | . 30 23 Core Hits 29 | . 15 14 Critical Kills . | . . . Critical Parts Destroyed . | . . . Critical Strikes . | . . . Melee Attacks . | . . . Impact . | . . . Slashing . | . . . Piercing . | . . . Sneak Attacks . | . . . Combat Hostiles . | . . . Follow-up Attacks . | . . . Damage Inflicted 642 | . 450 192 Guns 640 | . 450 190 Cannons . | . . . Explosions . | . . . Melee . | . . . Ramming 2 | . . 2 Kinetic 640 | . 450 190 Thermal . | . . . Explosive . | . . . Electromagnetic . | . . . Impact . | . . . Slashing . | . . . Piercing . | . . . Highest Corruption 13 | . . 13 Average Corruption 8 | . . 8 Corruption Purged . | . . . Corruption Blocked . | . . . Effects 2 | . . 2 Energy Discharges 2 | . . 2 Overload Shots . | . . . Overflow Damage . | . . . Projectiles . | . . . Explosions . | . . . Melee . | . . . Knockbacks . | . . . Impact . | . . . Kinetic . | . . . Secondary . | . . . Self-Inflicted Damage . | . . . Shots . | . . . Rammed 1 | . . 1 Targets Rammed 2 | . . 2 Kicked . | . . . Crushed 1 | . . 1 Highest Temperature 20 | . . 20 Average Temperature 20 | . . 20 Received Heat Transfer 74 | . 54 20 Siege Activations . | . . . Robots Corrupted . | . . . Combat Hostiles . | . . . Parts Fried . | . . . Impact Corruptions . | . . . Robots Melted . | . . . Combat Hostiles . | . . . Parts Melted . | . . . Heat Transferred . | . . . Parts Sabotaged . | . . . Parts Stolen . | . . . Parts Stripped . | . . . Power Chain Reactions . | . . . Alert | -11 -10 -10 ------- Run | Yrd Mat Min Peak Influence 205 | . 205 25 Initial 25 | . . 25 Average 44 | . 59 21 Maximum Alert Level 1 | . 1 . Low Security (%) 95 | 100 93 100 Level 1 4 | . 6 . Level 2 . | . . . Level 3 . | . . . Level 4 . | . . . Level 5 . | . . . High Security . | . . . Max Security . | . . . Squads Dispatched 3 | . 3 . Investigation 1 | . 1 . Extermination . | . . . Reinforcement 2 | . 2 . Assault . | . . . Garrison . | . . . Intercept . | . . . Searches Triggered . | . . . Construction Impeded . | . . . Haulers Reinforced . | . . . Active Scanning Responses . | . . . Cargo Convoy Interrupts . | . . . Stealth | -11 -10 -10 --------- Run | Yrd Mat Min Distress Signals 2 | . 2 . Communications Jammed . | . . . Distress Signals . | . . . Times Spotted 43 | . 16 27 Peak Tracking Total 18 | . 5 18 Tactical Retreats 3 | . . 3 Traps | -11 -10 -10 ------- Run | Yrd Mat Min Traps Triggered 1 | . 1 . Indirectly . | . . . Trap Hack Attempts . | . . . Triggered . | . . . Disarmed . | . . . Reprogrammed . | . . . Reused . | . . . Traps Extracted . | . . . Installed . | . . . Triggered . | . . . Machines | -11 -10 -10 ---------- Run | Yrd Mat Min Machines Disabled . | . . . Max in Single Turn . | . . . Machines Repaired . | . . . Machines Dismantled . | . . . Machines Sabotaged . | . . . Overloaded Fab Kills . | . . . Hacking | -11 -10 -10 --------- Run | Yrd Mat Min Machines Accessed 2 | . 2 . Terminals 2 | . 2 . Fabricators . | . . . Repair Stations . | . . . Recycling Units . | . . . Scanalyzers . | . . . Garrison Access . | . . . Total Hacks 3 | . 3 . Successful 1 | . 1 . Failed 2 | . 2 . Catastrophic . | . . . Database Lockouts . | . . . Manual . | . . . Terminals 3 | . 3 . Fabricators . | . . . Repair Stations . | . . . Recycling Units . | . . . Scanalyzers . | . . . Garrison Access . | . . . Terminal Hacks 1 | . 1 . Alert Level 1 | . 1 . Fabricator Hacks . | . . . Repair Station Hacks . | . . . Recycling Unit Hacks . | . . . Scanalyzer . | . . . Garrison Access Hacks . | . . . Unauthorized Hacks . | . . . Terminals . | . . . Fabricators . | . . . Repair Stations . | . . . Recycling Units . | . . . Scanalyzers . | . . . Garrison Access . | . . . Data Cores Recovered . | . . . Used . | . . . Hacking Detections 1 | . 1 . Full Trace Events . | . . . Feedback Events . | . . . Feedback Blocked . | . . . Robot Schematics Acquired . | . . . Robots Built . | . . . Authchips . | . . . Time . | . . . Total Robot Build Rating . | . . . Part Schematics Acquired . | . . . Parts Built . | . . . Authchips . | . . . Time . | . . . Total Part Build Rating . | . . . Parts Repaired . | . . . Time . | . . . Parts Recycled . | . . . Recycled Matter . | . . . Retrieved Matter . | . . . Retrieved Components . | . . . Parts Scanalyzed . | . . . Part Schematics Acquired . | . . . Parts Damaged . | . . . Bothacking | -11 -10 -10 ------------ Run | Yrd Mat Min Used RIF Installer . | . . . Robots Hacked . | . . . Non-combat . | . . . Combat . | . . . Robot Hacks Applied . | . . . Relay Couplers Released . | . . . Fabnet Peak Effective % . | . . . Robots Rewired . | . . . Allies Hacked . | . . . Hacks Repelled . | . . . Allies | -11 -10 -10 -------- Run | Yrd Mat Min Total Allies . | . . . Largest Group . | . . . Highest-Rated Group . | . . . Highest-Rated Ally . | . . . Total Orders . | . . . Ally Attacks . | . . . Total Damage . | . . . Kills . | . . . Allies Corrupted . | . . . Allies Melted 1 | . . 1 Intel | -11 -10 -10 ------- Run | Yrd Mat Min Robot Analysis Total . | . . . Derelict Logs Recovered . | . . . Drone Launches . | . . . Drone Recoveries . | . . . Exploration | -11 -10 -10 ------------- Run | Yrd Mat Min Turns Passed 932 | 75 606 251 Spaces Moved 474 | 50 310 114 Core 15 | 15 . . Treads 459 | 35 310 114 Legs . | . . . Wheels . | . . . Hover . | . . . Flight . | . . . Fastest Speed 50 | 50 160 160 Average Speed 156 | 127 160 160 Slowest Speed 160 | 160 160 160 Overloaded Moves . | . . . Propulsion Burnouts . | . . . Robots Hopped . | . . . Cave-ins Triggered . | . . . Exploration Rate (%) 27 | 4 52 26 Regions Visited 2 Branch Regions 1 Pre-discovered Areas . | . . . Known Exits Taken . | . . . Unknown Exits Taken 2 | 1 1 . Scrap Searched . | . . . Spaces Dug . | . . . Terrain Destroyed . | . . . Melee . | . . . Projectile . | . . . AOE . | . . . Terrain Rammed . | . . . Walls Destroyed . | . . . Machines Disabled . | . . . Actions | -11 -10 -10 --------- Run | Yrd Mat Min Total 581 | 62 370 149 Wait 28 | . 28 . Move 472 | 49 309 114 Hop . | . . . Pick Up 17 | 7 5 5 Fast Attach . | . . . Attach 12 | 6 2 4 Detach . | . . . Swap 3 | . . 3 Drop 2 | . . 2 Fire 45 | . 26 19 Melee . | . . . Ram . | . . . Kick . | . . . Crush 2 | . . 2 Escape Stasis . | . . . Rewire . | . . . Trap . | . . . Miscellaneous . | . . . Route ------- -11/Scrapyard -10/Materials (discovered 2 exits: [*Mat] / [*Min]) -10/Mines (discovered 1 exit: [Sub]) History --------- Turn | Location | Event 6 | -11/Scrapyard | Discovered new exit (range 14) 76 | -11/Scrapyard | Entered Materials 226 | -10/Materials | Discovered new exit (range 15) 301 | -10/Materials | Build established: Mutant 657 | -10/Materials | Discovered new exit (range 12) 682 | -10/Materials | Entered Mines 682 | -10/Mines | Discovered new exit (range 6) 690 | -10/Mines | Joined a pair of Derelicts in attacking an 0b10 outpost 844 | -10/Mines | Assembled infested the area 849 | -10/Mines | Assisted by a Guerilla fighting off Assembled 904 | -10/Mines | Core integrity fell below 50% 906 | -10/Mines | System corruption reached 10% 923 | -10/Mines | Lost 3 allies 929 | -10/Mines | Core integrity fell below 20% 933 | -10/Mines | Destroyed by as-49350 with Assembled Heavy Rifle Last Messages --------------- as-46676 destroyed. Acquired 16 matter. Slammed into as-62853. Acquired 2 matter. Structural Scanner destroyed. System corrupted by crushing effect (+3). as-62853 destroyed. Switching to secondary target: as-18224. System corrupted: Energy discharge (-37). Lgt. Treads destroyed. Lgt. Ion Engine destroyed. System corrupted by crushing effect (+1). System corrupted by crushing effect (+5). Targeting Computer destroyed. System corrupted by crushing effect (+1). as-69725 destroyed. Lgt. Ion Engine destroyed. System corrupted by crushing effect (+1). as-18224 destroyed. System corrupted: Energy discharge (-38). Map ----- +----------------------------------------------------+ | ??????????????????????????????????????? | | ??????????????????????????????????????? | | ????### ??????????????????????????????? | | ????### ??????????????????????????????? | | ???### ??????????????????????????????? | | ??#### ?????????????????????????? | | ??### ^ #### ?????????????????????????? | | ??## #######????????????????????? | | ??## # # ########???????????????????? | | ??###^# #^### #####?????????????????? | | ???## ^# ^## ####?????????????????? | | ???## ## # ##?????????????????? | | ??### ^ ##?????????????????? | | ??### ##?????????????????? | | ?### ###?????????????????? | | ?### ### ##??????????????????? | | ### #### ##??????????????????? | | ## # ####??????????????????????? | | ## ## #######?????######??????????? | | ### ### #######????########?????????? | | ######## #### ????### ###?????????? | | ?####### #### ##????## ##?????????? | | ??????## ## ##???### ###?##### ## | | ??????##### ## ##??#### ######### "" | | ??????##### ##a####### ## | | ?????????## ##@###### % | | ????????### a a % ] | | ???????####a######### % | | ?######### ######## ## | | ######### ### | | ###" ## ######## | | ##"" # ##### ########? | | ## !!+ ### ####?????? | | ##!!!!+ ### ## ####??????? | | ##"!==# ## # ### #####???????? | | ###"%## ## #### ##########????????? | | ###### ##################??????????? | | ### ##< ########?????????????????? | | ## ######???????????????????????? | | ## #####???????????????????????? | | ## ###??????????????????????? | | ## ##??????????????????????? | | ### ##??????????????????????? | | ###### ###??????????????????????? | | ?####### ####??????????????????????? | | ????##### ####???????????????????????? | | ???????#######????????????????????????? | | ????????#####?????????????????????????? | | | | | +----------------------------------------------------+ Best States ------------- Heat Dissipation 25 Energy Generation 10 Energy Capacity 125 Matter Stores 300 Matter Capacity 300 Sight Range 16 Terrain Scan Density 10 Evasion (%) 50 Targeting Accuracy 5 Recoil Reduction 2 Item Schematics ----------------- None Robot Schematics ------------------ None Fabricated ------------ Nothing Alien Tech Used ----------------- None Achievements -------------- None Challenges ------------ None Game ------ Seed ZhirovPhaseInverter Manual? 0 Play Time 00:08:12 Cumulative 14.0 hours Start 2024.08.25 @ 22:10:00 End 2024.08.25 @ 22:16:11 Sessions 1 Manual Loads 0 Difficulty Rogue Special Mode None Game No. 29 Rogue 29 Adventurer 0 Explorer 0 Win Type - Total 0 Types 0/0/0/0/0/0/0/0/0 Lore% 7 Gallery% 20 Achievement% 16 Wizard Run 0 Options --------- Layout 1 ASCII 0 Keyboard 0 Movement Arrows Keybinds 0 Fullscreen 1 Font 48/Smallcaps Map View 25x17 Zoom Use 57% Tactical HUD 0 Map Filters NONE Filters NONE Steam 1 RUN: bb8602c4-cd99-4d64-8950-340f4753e066